bitfinex/quotes_ETHUSD_20220201
["timestamp","ask_amount","ask_price","bid_price","bid_amount"]
[1643699476175,0.55731899,2744.2,2744.1,5.00332333]
[1643699479631,0.55731899,2744.2,2744.1,4.38495974]
[1643699479829,0.55731899,2744.2,2744.1,4.20275974]
[1643699480628,0.55731899,2744.2,2744.1,4.27953888]
[1643699481229,0.55731899,2744.2,2744.1,2.51456914]
[1643699481871,0.55731899,2744.2,2744.1,0.07677914]
[1643699481872,0.73951899,2744.2,2744.1,0.07677914]
[1643699483077,1.65062899,2744.2,2743.9,0.07677914]
[1643699483278,0.1822,2744.1,2744.0,0.07679042]
[1643699483476,0.1822,2744.1,2743.9,0.07679042]
[1643699484288,0.1822,2744.1,2743.8,0.145964]
[1643699485846,0.1822,2744.1,2743.9,0.07679511]
[1643699487631,0.1822,2744.1,2744.0,0.07679511]
[1643699487833,0.1822,2744.1,2743.6,0.75866695]
[1643699488232,1.09329,2744.1,2743.6,0.75866695]
[1643699489274,1.46842899,2744.2,2743.8,0.3489]
[1643699489275,1.82217,2743.9,2743.8,0.3489]
[1643699489483,0.55731899,2744.2,2743.8,2.95269511]
[1643699489681,0.45981899,2744.2,2744.1,7.28131893]
[1643699489877,0.45864299,2744.2,2744.1,8.20379511]
[1643699490107,0.45864299,2744.2,2744.1,9.18509031]
[1643699490278,0.45864299,2744.2,2744.1,1.90379511]
[1643699490677,0.45864299,2744.2,2744.1,0.90379511]
[1643699490981,0.45864299,2744.2,2744.1,1.827]
[1643699491178,0.45864299,2744.2,2744.1,3.64841]
[1643699491480,0.35864299,2744.2,2744.1,2.64841]
[1643699491679,0.35864299,2744.2,2744.1,3.64841]
[1643699491877,0.35864299,2744.2,2744.1,3.83061]
[1643699492381,0.35864299,2744.2,2744.1,3.53061]
[1643699492680,1.50883065,2744.6,2744.1,3.53061]
[1643699492890,1.50883065,2744.6,2744.3,0.91085]
[1643699493133,0.9108,2744.5,2744.3,0.91085]
[1643699493727,0.9108,2744.5,2744.2,0.1821]
[1643699493928,1.0929,2744.5,2744.2,0.1821]
[1643699494528,1.0929,2744.5,2744.3,0.91089]
[1643699494929,0.9108,2744.5,2744.3,0.91089]
[1643699495928,0.9108,2744.5,2744.1,1.82141]
[1643699499681,1.0929,2744.5,2744.1,1.82141]
[1643699500534,1.0826603,2744.5,2744.1,1.82141]
[1643699501776,0.9005603,2744.5,2744.1,1.82141]
[1643699501939,0.44092208,2744.3,2744.1,1.82141]
[1643699502139,2.26276208,2744.3,2744.1,1.82141]
[1643699503041,1.82184,2744.3,2744.2,1.88077214]
[1643699503241,0.9005603,2744.5,2744.2,2.88077214]
[1643699503447,0.9005603,2744.5,2744.2,3.06287214]
[1643699503890,0.91072,2744.7,2744.2,3.06287214]
[1643699504483,0.91072,2744.7,2744.3,1.82158]
[1643699504687,0.91072,2744.7,2744.3,3.71073353]
[1643699504885,0.91072,2744.7,2744.3,4.71073353]
[1643699505087,0.91072,2744.7,2744.3,2.82158]
[1643699506288,0.91072,2744.7,2744.3,2.780638]
[1643699506487,0.91072,2744.7,2744.4,0.91074]
[1643699506888,0.91072,2744.7,2744.4,3.79754318]
[1643699507192,10.06566051,2746.2,2744.6,21.35]
[1643699507193,2.000106,2745.0,2744.6,21.35]
[1643699507391,2.000106,2745.0,2744.7,2.79339003]
[1643699507392,1.089476,2745.0,2744.7,2.79339003]
[1643699507590,1.089476,2745.0,2744.9,5.05347837]
[1643699507790,1.08808572,2745.0,2744.9,3.43015194]
[1643699508633,1.08808572,2745.0,2744.9,2.24805194]
[1643699508830,1.08808572,2745.0,2744.9,3.24805194]
[1643699509031,1.03808572,2745.0,2744.9,2.24805194]
[1643699509331,1.03808572,2745.0,2744.9,3.12109]
[1643699510431,1.03808572,2745.0,2744.9,5.31515008]
[1643699510731,1.03808572,2745.0,2744.9,5.84215008]
[1643699511331,1.03808572,2745.0,2744.9,3.64809]
[1643699512595,1.03808572,2745.0,2744.9,2.82109]
[1643699512898,1.03808572,2745.0,2744.9,1.82109]
[1643699513601,1.03808572,2745.0,2744.9,2.82109]
[1643699516340,1.03808572,2745.0,2744.9,1.82109]
[1643699516951,1.03808572,2745.0,2744.9,2.82109]
[1643699520385,1.03808572,2745.0,2744.9,1.82109]
[1643699521092,1.03808572,2745.0,2744.9,2.82109]
[1643699522090,0.96808572,2745.0,2744.9,2.82109]
[1643699523341,0.96808572,2745.0,2744.9,1.82109]
[1643699524844,0.96808572,2745.0,2744.9,3.12109]
[1643699525249,0.96808572,2745.0,2744.9,3.30319]
[1643699525849,0.1821,2745.8,2745.0,4.75]
[1643699526156,0.1821,2746.3,2745.6,0.34111705]
[1643699526357,4.9563,2746.6,2745.6,0.34111705]
[1643699526358,0.1889,2746.6,2745.7,2.7089]
[1643699526551,0.1889,2746.6,2745.9,0.01245472]
[1643699526790,0.007,2746.6,2746.0,22.0589]
[1643699526987,0.007,2746.6,2746.0,0.7089]
[1643699527196,0.007,2746.6,2746.1,2.33575037]
[1643699527388,0.007,2746.6,2746.2,2.1819]
[1643699527591,0.007,2746.6,2746.3,0.527]
[1643699527790,0.007,2746.6,2746.4,21.5319]
[1643699527990,0.007,2746.6,2746.5,6.077]
[1643699528387,0.007,2746.6,2746.5,7.077]
[1643699528593,0.007,2746.6,2746.5,1.527]
[1643699528887,0.007,2746.6,2746.5,0.527]
[1643699529088,0.007,2746.6,2746.5,1.527]
[1643699529893,0.007,2746.6,2746.5,3.46703055]
[1643699530626,0.007,2746.6,2746.5,2.47909676]
[1643699530828,0.1889,2746.6,2746.5,1.95209676]
[1643699531235,0.007,2746.6,2746.5,0.01206621]
[1643699531633,0.1889,2746.6,2746.5,0.01206621]
[1643699533140,0.1889,2746.6,2746.0,5.77581]
[1643699533141,0.01312821,2746.4,2746.0,5.77581]
[1643699533337,0.1819,2746.3,2746.0,1.82031]
[1643699533737,0.42674565,2746.1,2746.0,1.82031]
[1643699534775,0.1819,2746.3,2746.0,2.7305504]
[1643699535181,0.1819,2746.3,2746.0,3.0305504]
[1643699535583,0.01312821,2746.4,2746.0,3.0305504]
[1643699535781,0.3658119,2746.4,2746.0,3.0305504]
[1643699536189,0.3658119,2746.4,2746.1,0.91015]
[1643699536696,0.3658119,2746.4,2746.1,2.83589257]
[1643699536887,0.3658119,2746.4,2746.1,0.91015]
[1643699537488,0.3658119,2746.4,2746.0,3.0305504]
[1643699538132,0.1819,2746.3,2746.0,2.7305504]
[1643699538335,0.1819,2746.3,2745.1,2.47345919]
[1643699538533,0.1819,2746.3,2745.1,5.45912997]
[1643699538734,0.9105,2746.1,2745.1,5.32093]
[1643699538937,0.1821,2746.0,2745.1,1.82093]
[1643699539137,0.38216582,2745.2,2745.1,1.82093]
[1643699540738,0.38216582,2745.2,2745.0,3.6405568]
[1643699540940,0.38216582,2745.2,2745.0,0.1821]
[1643699541339,0.1821,2745.1,2744.6,0.1]
[1643699542189,0.3344933,2744.7,2744.6,0.1]
[1643699543189,0.3344933,2744.7,2744.5,0.1821]
[1643699544593,0.85817472,2744.6,2744.5,0.1821]
[1643699544798,3.13438999,2744.6,2744.5,0.1821]
[1643699544992,1.04027472,2744.6,2744.5,0.1821]
[1643699545217,2.996361,2744.6,2744.5,0.1821]
[1643699545535,3.01095433,2744.6,2744.5,0.1821]
[1643699545735,1.10116991,2744.6,2744.5,0.1821]
[1643699546337,1.10116991,2744.6,2743.7,0.1821]
[1643699546539,0.91101,2744.5,2743.7,0.1821]
[1643699548845,2.29442814,2744.4,2743.6,0.3]
[1643699549045,1.82221,2744.3,2743.5,0.445978]
[1643699549281,0.1822,2744.2,2743.5,0.445978]
[1643699549481,0.91112,2744.1,2743.5,0.445978]
[1643699549781,0.36909621,2743.9,2743.5,0.445978]
[1643699550184,0.36909621,2743.9,2743.5,1.35709]
[1643699552590,0.36909621,2743.9,2743.6,1.09325]
[1643699553028,0.36909621,2743.9,2743.6,1.62025]
[1643699553239,0.36909621,2743.9,2743.6,2.62025]
[1643699553440,0.36562757,2743.9,2743.6,2.62025]
[1643699553834,0.36562757,2743.9,2743.6,1.62025]
[1643699554032,0.36562757,2743.9,2743.6,1.43805]
[1643699554235,0.36562757,2743.9,2743.6,2.73805]
[1643699554438,0.36562757,2743.9,2743.6,2.43805]
[1643699555743,0.06012415,2743.8,2743.6,2.43805]
[1643699555945,0.03376235,2743.8,2743.7,0.1822]
[1643699556979,0.03376235,2743.8,2743.7,2.1650125]
[1643699557180,0.03376235,2743.8,2743.7,3.4650125]
[1643699557582,0.03376235,2743.8,2743.7,0.1822]
[1643699558186,0.03376235,2743.8,2743.5,2.733012]
[1643699558784,0.03376235,2743.8,2743.6,1.3]
[1643699558986,0.03376235,2743.8,2743.6,1.4822]
[1643699560200,0.03376235,2743.8,2743.6,3.3041]
[1643699560389,0.03376235,2743.8,2743.7,0.91094]
[1643699560643,0.36562757,2743.9,2743.7,0.91094]
[1643699560838,0.36562757,2743.9,2743.7,2.121878]
[1643699561038,0.36562757,2743.9,2743.7,4.06478987]
[1643699561243,0.36562757,2743.9,2743.8,1.0]
[1643699561440,0.36562757,2743.9,2743.7,1.821878]
[1643699561640,0.36562757,2743.9,2743.4,2.0042099]
[1643699561837,1.09332,2743.8,2743.4,1.8220099]
[1643699562342,1.09332,2743.8,2743.5,0.91105]
[1643699562539,0.36562757,2743.9,2743.6,0.1822]
[1643699562738,0.36562757,2743.9,2743.6,3.92479227]
[1643699562942,0.36562757,2743.9,2743.6,4.73912149]
[1643699563142,0.36562757,2743.9,2743.7,1.0]
[1643699563363,0.36562757,2743.9,2743.7,1.3]
[1643699564143,0.1822,2743.8,2743.7,0.9109626]
[1643699565090,0.36562757,2743.9,2743.7,0.9109626]
[1643699565891,0.1822,2743.8,2743.7,0.9109626]
[1643699566089,0.1822,2743.8,2743.5,1.82192]
[1643699567892,0.1822,2743.8,2743.5,2.12192]
[1643699568534,1.27670757,2743.9,2743.5,2.12192]
[1643699570769,1.27670757,2743.9,2743.5,0.3]
[1643699572593,0.91108,2743.9,2743.6,2.10517451]
[1643699572894,0.91099,2744.3,2743.7,1.8218773]
[1643699573093,0.91099,2744.3,2743.8,2.25725112]
[1643699573299,0.1822,2744.2,2743.8,2.07505112]
[1643699573494,0.91099,2744.3,2743.8,2.37505112]
[1643699573700,0.40940909,2744.1,2743.8,3.37505112]
[1643699573896,0.40940909,2744.1,2743.9,1.09314]
[1643699575095,0.91099,2744.3,2743.9,1.09314]
[1643699575299,0.91099,2744.3,2744.0,1.96135922]
[1643699575530,0.91099,2744.3,2743.9,1.09314]
[1643699576135,0.42687675,2744.1,2743.9,1.09314]
[1643699576529,0.42509341,2744.1,2743.9,1.09314]
[1643699576732,0.42509341,2744.1,2744.0,1.95542261]
[1643699577031,0.42509341,2744.1,2744.0,2.25542261]
[1643699577232,0.42509341,2744.1,2744.0,1.95542261]
[1643699577435,0.42509341,2744.1,2743.9,1.39314]
[1643699577636,0.42509341,2744.1,2743.9,1.21094]
[1643699579896,0.42509341,2744.1,2743.9,0.3]
[1643699580090,0.42509341,2744.1,2743.8,1.0931382]
[1643699580492,0.42509341,2744.1,2743.8,0.9109382]
[1643699580895,0.42509341,2744.1,2743.7,1.8218773]
[1643699581098,0.1822,2744.0,2743.8,0.91101]
[1643699581494,0.85817472,2744.6,2743.8,0.91101]
[1643699581495,0.1822,2744.5,2743.8,0.91101]
[1643699581892,0.1822,2744.5,2743.8,2.85425324]
[1643699582094,0.1822,2744.5,2743.8,4.66395869]
[1643699582294,0.1822,2744.5,2743.8,4.96395869]
[1643699582700,0.39342637,2744.1,2743.8,3.0329771]
[1643699583144,0.39342637,2744.1,2743.8,5.84727519]
[1643699583343,0.39342637,2744.1,2743.8,5.84986676]
[1643699583748,0.39342637,2744.1,2743.8,3.641952]
[1643699583947,0.39342637,2744.1,2743.8,2.7329771]
[1643699584142,0.39342637,2744.1,2743.8,5.53684689]
[1643699584344,0.39342637,2744.1,2743.8,5.83684689]
[1643699584550,0.1822,2744.5,2743.8,3.0329771]
[1643699584744,0.13819997,2745.0,2743.8,4.97784402]
[1643699584745,0.1822,2744.8,2743.8,4.97784402]
[1643699584945,1.53577717,2744.7,2743.8,3.0329771]
[1643699585146,0.1821,2744.6,2743.8,3.0329771]
[1643699585347,1.53577717,2744.5,2743.8,3.0329771]
[1643699585592,0.1822,2744.4,2743.9,1.0]
[1643699585748,0.35872874,2744.1,2743.8,4.918492]
[1643699585948,0.35872874,2744.1,2744.0,0.91092]
[1643699586153,0.35872874,2744.1,2744.0,1.21092]
[1643699586883,0.35872874,2744.1,2744.0,0.91092]
[1643699588289,0.35872874,2744.1,2744.0,1.821814]
[1643699588493,0.35872874,2744.1,2743.8,2.913142]
[1643699588689,0.35872874,2744.1,2743.8,2.730942]
[1643699589693,0.35872874,2744.1,2743.8,1.8219671]
[1643699589892,0.35872874,2744.1,2743.9,2.02281825]
[1643699590095,0.35872874,2744.1,2744.0,0.91089]
[1643699590295,0.1822,2744.5,2744.0,2.1198649]
[1643699590533,0.81077351,2744.6,2744.0,2.1198649]
[1643699590730,1.53556695,2744.5,2744.0,2.1198649]
[1643699591231,0.1821,2744.8,2744.1,1.86615499]
[1643699591431,0.1821,2744.8,2744.1,0.9089749]
[1643699591432,0.38233287,2744.4,2744.1,0.9089749]
[1643699591639,0.38233287,2744.4,2744.1,2.77842036]
[1643699592137,0.38233287,2744.4,2744.1,1.8198675]
[1643699592440,0.38233287,2744.4,2744.1,0.9108926]
[1643699592836,0.38233287,2744.4,2744.1,1.0929926]
[1643699593236,0.38233287,2744.4,2744.1,2.0019675]
[1643699595595,0.1821,2744.3,2744.1,2.0019675]
[1643699595794,0.38233287,2744.4,2744.1,0.9108926]
[1643699595993,0.09110184,2744.4,2743.9,0.9089749]
[1643699596200,1.71791606,2744.3,2743.8,2.7329771]
[1643699596394,1.71791606,2744.3,2743.8,1.8219671]
[1643699596395,0.1822,2744.3,2743.8,1.8219671]
[1643699597397,1.53574012,2744.2,2743.8,1.8219671]
[1643699597596,0.31768773,2743.9,2743.8,1.8219671]
[1643699598645,0.1822,2744.5,2743.8,1.8219671]
[1643699598840,1.53569706,2744.4,2743.8,2.913142]
[1643699599041,1.53569706,2744.3,2743.8,2.913142]
[1643699599245,0.1822,2744.2,2743.8,1.8219671]
[1643699599446,0.68754581,2744.7,2743.8,1.8219671]
[1643699599447,2.16391206,2744.4,2743.8,1.8219671]
[1643699599644,1.54865289,2744.3,2743.3,6.07789704]
[1643699599842,1.71799299,2744.2,2743.3,6.07789704]
[1643699600043,1.53579299,2744.1,2743.3,6.07789704]
[1643699600243,0.1822,2744.0,2743.3,6.07789704]
[1643699600542,0.32802879,2743.5,2743.3,6.07789704]
[1643699600743,0.32802879,2743.5,2743.3,4.7373142]
[1643699601143,0.1822,2744.3,2743.4,1.21108]
[1643699601346,0.1822,2744.6,2743.5,3.33251608]
[1643699601549,1.53571574,2744.5,2743.6,1.0]
[1643699601807,1.53571574,2744.5,2743.7,2.20304568]
[1643699602012,0.35084711,2744.1,2743.8,1.0931459]
[1643699602210,0.35084711,2744.1,2743.9,2.26916471]
[1643699602411,0.86974581,2744.7,2744.0,2.11197743]
[1643699602710,1.53565399,2744.6,2744.0,3.02290743]
[1643699603310,1.53565399,2744.6,2744.0,1.09313]
[1643699603514,0.42759555,2744.2,2744.0,0.91093]
[1643699603911,0.1822,2744.6,2744.0,0.91093]
[1643699604111,1.5356793,2744.5,2744.1,0.9109286]
[1643699605114,0.3898235,2744.3,2744.1,0.9109286]
[1643699607347,0.3898235,2744.3,2743.8,0.1821]
[1643699608753,0.3898235,2744.3,2743.7,7.19452749]
[1643699609152,0.3898235,2744.3,2743.7,6.89452749]
[1643699609393,0.3898235,2744.3,2743.7,5.0241018]
[1643699610597,0.3898235,2744.3,2743.7,5.3241018]
[1643699611197,0.3898235,2744.3,2743.7,7.23846852]
[1643699612099,0.1822,2744.6,2744.0,0.9109953]
[1643699612306,0.1821,2744.9,2744.1,2.38738109]
[1643699612502,1.53556069,2744.8,2744.1,2.50528109]
[1643699612705,1.53556069,2744.8,2744.2,0.1821]
[1643699613140,0.38655599,2744.3,2744.2,0.1821]
[1643699613540,0.74450156,2744.7,2744.2,2.03838415]
[1643699613944,1.53556808,2744.6,2744.2,2.03838415]
[1643699614148,1.53556808,2744.6,2744.2,3.86020755]
[1643699614347,1.53556808,2744.6,2744.2,0.4821]
[1643699614746,0.3756958,2744.5,2744.2,0.4821]
[1643699614952,0.3756958,2744.5,2744.2,0.1821]
[1643699617990,1.53562085,2744.4,2744.2,0.1821]
[1643699618891,0.3756958,2744.5,2744.2,0.1821]
[1643699619091,0.3756958,2744.5,2744.1,1.1821]
[1643699619290,1.53564436,2744.4,2744.1,0.1821]
[1643699619490,1.53564436,2744.4,2744.1,1.1821]
[1643699619894,1.53564436,2744.4,2744.1,0.1821]
[1643699620292,0.3756958,2744.5,2744.1,0.1821]
[1643699622639,0.3756958,2744.5,2744.0,4.21561189]
[1643699623035,0.37445045,2744.5,2744.0,4.21561189]
[1643699625692,0.37445045,2744.5,2744.1,0.91098]
[1643699626092,0.37445045,2744.5,2744.1,2.82268529]
[1643699628034,0.37445045,2744.5,2744.1,1.91098]
[1643699628239,0.37445045,2744.5,2744.1,2.21098]
[1643699632403,1.53561216,2744.4,2744.1,2.21098]
[1643699633202,0.37445045,2744.5,2744.1,2.21098]
[1643699635842,0.37445045,2744.5,2744.1,0.91098]
[1643699636047,3.7097504,2744.4,2743.6,0.91170529]
[1643699636255,1.53563763,2744.3,2743.6,0.91170529]
[1643699636448,0.1822,2744.2,2743.6,0.91170529]
[1643699636648,1.53563763,2744.1,2743.6,0.91170529]
[1643699636848,0.1822,2744.0,2743.5,1.05768529]
[1643699637047,0.3383617,2743.9,2743.5,1.05768529]
[1643699637246,0.3383617,2743.9,2743.5,1.96885529]
[1643699638048,0.3383617,2743.9,2743.5,1.82287529]
[1643699638253,0.3383617,2743.9,2743.6,0.91170529]
[1643699642695,0.3383617,2743.9,2743.6,1.21170529]
[1643699642896,0.1822,2744.5,2743.6,2.60502649]
[1643699643155,1.53572033,2744.4,2743.8,0.91107]
[1643699643359,1.53572033,2744.4,2743.8,2.30497529]
[1643699643749,2.42886334,2744.4,2743.8,2.12277529]
[1643699643949,1.53444312,2744.3,2743.9,0.1822]
[1643699644149,1.53444312,2744.3,2743.8,2.12277529]
[1643699644350,1.53444312,2744.3,2743.8,2.21107]
[1643699644552,1.53444312,2744.3,2743.7,0.1822]
[1643699644750,1.71664312,2744.3,2743.6,2.00503529]
[1643699644953,0.1822,2744.3,2743.6,1.82283529]
[1643699645352,0.39348231,2743.7,2743.6,0.91113]
[1643699645552,0.39348231,2743.7,2743.6,1.82283529]
[1643699645954,0.39348231,2743.7,2743.6,2.73396939]
[1643699646654,0.1822,2744.3,2743.6,2.73396939]
[1643699646891,0.89314301,2744.4,2743.8,0.91106]
[1643699647893,0.1822,2744.9,2743.8,0.91106]
[1643699648094,0.1822,2744.9,2743.8,3.0688123]
[1643699648494,0.1822,2744.9,2743.8,3.3688123]
[1643699648700,0.1822,2744.9,2744.0,0.91101]
[1643699648915,0.35083079,2744.4,2744.1,0.1821]
[1643699650118,0.35083079,2744.4,2744.1,1.0930635]
[1643699650299,0.35083079,2744.4,2744.1,3.9148035]
[1643699650535,0.35083079,2744.4,2744.2,0.91086]
[1643699650744,0.35083079,2744.4,2744.2,1.82172]
[1643699652144,0.35083079,2744.4,2744.2,4.5542923]
[1643699652745,0.1821,2744.8,2744.2,3.6434323]
[1643699652946,0.1821,2744.8,2744.4,0.91086]
[1643699653162,0.1821,2744.8,2744.4,1.8217004]
[1643699653950,0.36296686,2744.7,2744.4,1.8217004]
[1643699654406,0.36296686,2744.7,2744.4,0.91086]
[1643699654596,0.36296686,2744.7,2744.2,1.8217165]
[1643699654798,0.36296686,2744.7,2744.3,0.91092]
[1643699655224,0.36296686,2744.7,2744.2,1.8217165]
[1643699655406,0.36296686,2744.7,2744.2,3.68223791]
[1643699655997,0.36296686,2744.7,2744.3,0.91092]
[1643699660952,0.1821,2745.2,2744.3,3.67955971]
[1643699661154,0.1821,2745.2,2744.5,0.91085]
[1643699661354,0.1821,2745.2,2744.5,2.91085]
[1643699661554,0.1821,2745.2,2744.5,0.91085]
[1643699661999,0.1821,2745.4,2744.5,0.91085]
[1643699662203,0.89968072,2745.2,2744.5,0.91085]
[1643699663101,0.89968072,2745.2,2744.5,2.7323406]
[1643699663401,0.89968072,2745.2,2744.7,0.91072]
[1643699663604,0.42986022,2745.1,2744.7,0.91072]
[1643699664004,1.53529818,2745.0,2744.7,2.74067658]
[1643699665104,1.53529818,2745.0,2744.8,0.9107142]
[1643699665408,1.53529818,2745.0,2744.6,1.82142]
[1643699665649,1.53389848,2745.0,2744.6,3.67422898]
[1643699666445,1.53389848,2745.0,2744.6,4.58496338]
[1643699666868,1.53389848,2745.0,2744.6,5.49571338]
[1643699667244,1.53389848,2745.0,2744.6,3.6429044]
[1643699670502,0.42986022,2745.1,2744.6,3.6429044]
[1643699670698,0.42986022,2745.1,2744.6,2.7321544]
[1643699678801,0.42986022,2745.1,2744.6,2.7104504]
[1643699680012,0.42986022,2745.1,2744.7,4.3928]
[1643699680204,0.42986022,2745.1,2744.7,2.3928]
[1643699682046,0.42986022,2745.1,2744.8,1.85066864]
[1643699682247,0.42986022,2745.1,2744.7,2.3928]
[1643699682877,0.42986022,2745.1,2744.8,1.85056839]
[1643699683154,0.42986022,2745.1,2744.9,0.91073]
[1643699683353,0.42986022,2745.1,2744.9,1.21073]
[1643699683553,0.42986022,2745.1,2744.9,1.20969311]
[1643699683856,1.36440624,2745.1,2744.9,1.20969311]
[1643699685895,0.42986022,2745.1,2744.9,1.20969311]
[1643699686696,0.42986022,2745.1,2744.9,0.91073]
[1643699687904,0.42986022,2745.1,2744.9,1.91073]
[1643699688153,0.42986022,2745.1,2744.9,1.21073]
[1643699688354,0.42986022,2745.1,2744.9,2.21073]
[1643699689253,0.42986022,2745.1,2744.9,2.39283]
[1643699689453,0.42986022,2745.1,2745.0,1.86493068]
[1643699689657,0.42986022,2745.1,2744.9,2.21073]
[1643699691255,0.42986022,2745.1,2744.9,2.16073]
[1643699696849,0.42986022,2745.1,2744.9,2.46073]
[1643699697751,0.42986022,2745.1,2744.9,2.16073]
[1643699697952,0.42986022,2745.1,2744.9,4.01671227]
[1643699698756,0.42986022,2745.1,2744.9,1.91073]
[1643699699298,0.42986022,2745.1,2745.0,1.86603773]
[1643699699498,0.42986022,2745.1,2744.9,1.91073]
[1643699699703,0.42986022,2745.1,2745.0,1.86499626]
[1643699699899,0.42986022,2745.1,2744.9,1.91073]
[1643699701001,0.42986022,2745.1,2744.9,2.21073]
[1643699701900,0.42986022,2745.1,2745.0,1.84811046]
[1643699703049,0.61196022,2745.1,2744.9,0.91073]
[1643699703259,1.53524411,2745.0,2744.6,0.195933]
[1643699703454,0.1821,2744.9,2744.6,0.195933]
[1643699703652,1.53524411,2744.8,2744.6,0.195933]
[1643699703852,0.1821,2744.7,2744.6,0.195933]
[1643699706897,0.91446317,2744.8,2744.6,0.195933]
[1643699708102,0.89398655,2744.8,2744.6,0.195933]
[1643699708708,0.89398655,2744.8,2744.6,0.05]
[1643699709322,0.89398655,2744.8,2744.7,0.35881609]
[1643699709504,0.89398655,2744.8,2744.7,0.71763218]
[1643699709704,2.42946284,2744.8,2744.7,0.71763218]
[1643699714803,2.42946284,2744.8,2744.7,3.218e-05]
[1643699714804,5.41946284,2744.8,2744.7,3.218e-05]
[1643699715003,1.52667493,2744.6,2743.7,0.91170529]
[1643699715207,1.53547629,2744.5,2743.6,0.91170529]
[1643699715403,0.1822,2744.4,2743.5,1.09390529]
[1643699715610,1.53547629,2744.3,2743.5,1.09390529]
[1643699715803,0.78223155,2743.7,2743.5,0.91170529]
[1643699716105,0.44838977,2743.6,2743.5,0.91170529]
[1643699716306,0.44838977,2743.6,2743.4,2.14720529]
[1643699716506,0.44838977,2743.6,2743.5,0.1822]
[1643699716804,0.44838977,2743.6,2743.4,1.09390529]
[1643699717202,0.44838977,2743.6,2743.4,2.00506529]
[1643699718455,0.44838977,2743.6,2743.4,0.1822]
[1643699719556,0.1822,2744.2,2743.2,5.8632359]
[1643699719557,0.1822,2744.2,2743.2,2.7334359]
[1643699719758,0.1822,2744.2,2743.4,1.8223069]
[1643699719964,0.1822,2744.3,2743.5,0.1822]
[1643699720159,1.52667493,2744.6,2743.5,3.92090529]
[1643699720461,1.52667493,2744.6,2743.6,2.21170529]
[1643699720662,0.38857303,2744.3,2743.7,2.1822]
[1643699720862,0.38857303,2744.3,2743.8,0.9109505]
[1643699721059,0.38857303,2744.3,2743.9,0.1822]
[1643699722101,0.38857303,2744.3,2743.9,0.4822]
[1643699722299,0.38857303,2744.3,2743.9,4.31566601]
[1643699722506,0.38857303,2744.3,2743.9,3.31566601]
[1643699722903,0.38857303,2744.3,2743.9,3.01566601]
[1643699724905,0.38857303,2744.3,2743.9,1.09312]
[1643699725654,1.03060491,2744.5,2743.9,2.78573146]
[1643699725852,1.03060491,2744.5,2743.9,3.08573146]
[1643699726855,0.1822,2744.5,2744.0,0.9109654]
[1643699727064,1.52667493,2744.6,2744.1,3.05054613]
[1643699727260,1.52667493,2744.6,2744.2,1.0]
[1643699727557,1.52667493,2744.6,2744.1,2.91075165]
[1643699727757,1.52667493,2744.6,2744.2,1.0]
[1643699727957,1.84983075,2744.6,2744.1,3.72508087]
[1643699728160,1.84983075,2744.6,2744.2,1.0]
[1643699728763,1.84983075,2744.6,2744.2,0.91082]
[1643699729167,1.84983075,2744.6,2744.4,0.91083]
[1643699729392,1.52667493,2744.6,2744.4,0.91083]
[1643699730598,0.35917062,2744.5,2744.4,0.91083]
[1643699731801,0.35917062,2744.5,2744.3,1.9108492]
[1643699731997,0.35917062,2744.5,2744.3,0.9108492]
[1643699733455,1.52667493,2744.6,2744.3,0.9108492]
[1643699734054,1.52667493,2744.6,2744.4,0.91085]
[1643699734856,1.93582259,2744.6,2744.4,0.91085]
[1643699735854,2.63926071,2744.6,2744.4,0.91085]
[1643699736798,1.93582259,2744.6,2744.4,0.91085]
[1643699737804,1.93457939,2744.6,2744.4,0.91085]
[1643699738604,1.93457939,2744.6,2744.3,0.9108492]
[1643699739304,1.93457939,2744.6,2744.0,5.9241183]
[1643699739506,1.93457939,2744.6,2744.0,5.7420183]
[1643699739801,1.93457939,2744.6,2744.0,6.0420183]
[1643699740406,0.3368594,2744.1,2744.0,5.7420183]
[1643699740656,0.3368594,2744.1,2743.8,3.73361529]
[1643699740657,0.3368594,2744.1,2743.8,0.145961]
[1643699740854,0.3368594,2744.1,2743.7,3.8596]
[1643699741260,0.3368594,2744.1,2743.7,3.6774]
[1643699742752,0.3368594,2744.1,2743.7,3.3774]
[1643699743357,0.3368594,2744.1,2743.6,0.1822]
[1643699743758,0.3368594,2744.1,2743.6,0.4822]
[1643699745401,1.27955764,2744.1,2743.6,1.39390529]
[1643699745799,1.27955764,2744.1,2743.6,0.4822]
[1643699746601,0.1822,2744.0,2743.5,3.0282289]
[1643699746800,0.33953118,2743.6,2743.5,1.206]
[1643699747003,0.33953118,2743.6,2743.3,7.793156]
[1643699747202,0.33953118,2743.6,2743.3,4.555556]
[1643699748469,0.33953118,2743.6,2743.3,4.701547]
[1643699748860,0.33953118,2743.6,2743.3,4.555556]
[1643699749063,0.33953118,2743.6,2743.3,5.46726129]
[1643699750365,0.33953118,2743.6,2743.3,3.64506529]
[1643699750583,0.69407429,2743.8,2743.7,2.20030882]
[1643699751365,0.35316506,2743.9,2743.7,2.20030882]
[1643699752204,0.35316506,2743.9,2743.8,1.71764]
[1643699756359,0.35316506,2743.9,2743.8,1.863628]
[1643699756658,0.35316506,2743.9,2743.8,1.71764]
[1643699756906,0.35316506,2743.9,2743.7,0.48266882]
[1643699757259,1.12711872,2744.3,2743.8,1.71764]
[1643699757461,1.12711872,2744.3,2744.0,0.91111]
[1643699759063,0.34406287,2744.2,2744.0,0.91111]
[1643699763259,0.34406287,2744.2,2743.9,0.1822]
[1643699764658,0.34406287,2744.2,2743.8,1.89984]
[1643699766061,2.24510647,2744.2,2743.8,1.89984]
[1643699766259,0.34406287,2744.2,2743.8,1.89984]
[1643699771352,0.34406287,2744.2,2743.8,1.71764]
[1643699771752,0.34406287,2744.2,2743.8,1.71637468]
[1643699775806,0.34406287,2744.2,2743.8,1.86236168]
[1643699776205,0.34406287,2744.2,2743.8,1.71637468]
[1643699776411,2.21901571,2744.2,2743.8,1.71637468]
[1643699776608,1.53576479,2744.1,2743.8,1.71637468]
[1643699776808,0.34406287,2744.2,2743.8,1.71637468]
[1643699779959,0.34406287,2744.2,2743.8,1.86235968]
[1643699780159,0.34406287,2744.2,2743.8,1.71637468]
[1643699781263,1.53571606,2744.1,2743.8,1.71637468]
[1643699782905,0.34406287,2744.2,2743.8,1.71637468]
[1643699783307,1.53567667,2744.1,2743.8,1.71637468]
[1643699783709,1.53567667,2744.1,2743.8,1.86235868]